Cogmind - Beta 14 @@@ ROGUE MODE // 2024.09.26 @ 21:40:49 Player: Some Pennies Result: Destroyed by KI-PLY(R) with Subdweller Shrapnel Launcher Performance ------------- Evolutions (0) 0 Regions Visited (2) 400 Robots Destroyed (49) 245 Value Destroyed (1221) 1221 Prototype IDs (0) 0 Alien Tech Used (0) 0 Bonus (0) 0 TOTAL SCORE: 1866 Bonus ------- None Cogmind --------- Core Integrity 0/250 Matter 300/300 Energy 250/250 System Corruption 0% Temperature Cool (0) Movement Treading (160) Location -10/Subcaves Parts ------- > --- POWER (1) -------- Ion Engine > --- PROPULSION (2) --- Spiked Treads Spiked Treads > --- UTILITY (2) ------ Scrap Shield > --- WEAPON (2) ------- Subdweller Beam Cannon Subdweller Beam Cannon > --- INVENTORY (5) ---- Medium Storage Unit Huge Storage Unit Power Bank Subdweller Shrapnel Launcher Multitool Peak State ------------ > --- POWER ------------ Ion Engine > --- PROPULSION ------- Spiked Treads Spiked Treads > --- UTILITY ---------- Scrap Shield > --- WEAPON ----------- Subdweller Laser Subdweller Beam Cannon > --- INVENTORY -------- Medium Storage Unit Huge Storage Unit Makeshift Hacking Suite Subdweller Shrapnel Launcher Multitool [Rating: 14] Favorites ----------- Power Ion Engine Engine Ion Engine Propulsion Light Treads Treads Light Treads Utility Scrap Shield Device Seismic Detector Storage Large Storage Unit Hackware Makeshift Hacking Suite Protection Scrap Shield Weapon Subdweller Beam Cannon Energy Gun Subdweller Laser Energy Cannon Subdweller Beam Cannon Ballistic Gun Subdweller Machine Gun Ballistic Cannon Light Cannon Launcher Grenade Launcher Build | -11 -10 -10 ------- Run | Yrd Mat Sub Slots Evolved . | . . . Power . | . . . Propulsion . | . . . Utility . | . . . Weapon . | . . . Parts Attached 52 | 7 9 36 Power 4 | 1 . 3 Engine 4 | 1 . 3 Core . | . . . Reactor . | . . . Propulsion 7 | 2 . 5 Treads 7 | 2 . 5 Leg . | . . . Wheel . | . . . Hover . | . . . Flight . | . . . Utility 10 | 2 1 7 Device 3 | 1 . 2 Storage 2 | 1 1 . Processor . | . . . Hackware 1 | . . 1 Protection 4 | . . 4 Artifact . | . . . Weapon 31 | 2 8 21 Energy Gun 7 | . . 7 Energy Cannon 5 | . . 5 Ballistic Gun 7 | 2 2 3 Ballistic Cannon 4 | . 3 1 Launcher 8 | . 3 5 Special Weapon . | . . . Impact Weapon . | . . . Slashing Weapon . | . . . Piercing Weapon . | . . . Special Melee Weapon . | . . . Unidentified Prototypes . | . . . Parts Lost 2 | . . 2 Power . | . . . Propulsion . | . . . Utility 2 | . . 2 Weapon . | . . . Highest Loss Streak 1 | . . 1 To Critical Strikes . | . . . Average Slot Usage (%) 88 | . 100 85 Engine 14 | . 14 14 Treads 28 | . 28 28 Device 4 | . 14 1 Storage 3 | . 14 . Protection 9 | . . 12 Energy Gun 7 | . . 9 Energy Cannon 8 | . . 11 Ballistic Gun 6 | . 8 5 Ballistic Cannon 5 | . 18 1 Peak Build Rating 14 | 7 8 14 Average Rating 11 | 6 7 12 On Entrance 5 | . 7 8 Naked Turns . | . . . Heaviest Build 39 | 13 32 39 Greatest Support 40 | 40 40 40 Greatest Overweight (x) . | . . . Average Overweight (x) . | . . . Largest Inventory Capacity 15 | 8 15 15 Average Capacity 7 | 7 12 5 Most Carried 14 | 3 13 14 Average Carried 6 | 2 10 5 Final Capacity 15 | 8 15 5 Final Carried 13 | 3 13 5 Class Distribution -------------------- 65% | Subdweller-Mutant 33% | Mutant Dominant Class ---------------- Mutant | -10/Materials Subdweller-Mutant | -10/Subcaves Resources | -11 -10 -10 ----------- Run | Yrd Mat Sub Matter Collected 1141 | 255 266 620 Remotely . | . . . Salvage Created 1309 | 33 330 946 Parts 92 | 5 22 65 Haulers Intercepted 2 | . 2 . Recyclers Shooed 1 | . 1 . Parts Field Recycled . | . . . Retrieved Matter . | . . . Parts Self-Destructed 16 | . . 16 Prevented . | . . . Kills | -11 -10 -10 ------- Run | Yrd Mat Sub Combat Hostiles Destroyed 38 | . 9 29 Guns 15 | . 3 12 Cannons 11 | . 1 10 AOE 11 | . 5 6 Classes Destroyed 10 | 1 6 3 Worker 1 | . 1 . Tunneler 3 | 2 1 . Hauler 2 | . 2 . Operator 1 | . 1 . Turret 2 | . . 2 Watcher 2 | . 2 . Swarmer 15 | . 6 9 Grunt 3 | . 3 . Sentry 1 | . . 1 Subdweller 19 | . . 19 Best Kill Streak 5 | 1 3 5 Combat Bots Only 4 | . 3 4 Max Kills in Single Turn 4 | 1 2 4 Gunslinging . | . . . Exploded 4 | . 2 4 Melee . | . . . Uniques/NPCs Destroyed . | . . . Combat | -11 -10 -10 -------- Run | Yrd Mat Sub Hostile Shots Fired 171 | . 24 147 Missed 37 | . 6 31 Damage Taken 2351 | . 227 2124 Core 256 | . 61 195 Absorbed by Shields . | . . . Core Remaining (%) 100 | 100 . . Volleys Fired 171 | 12 43 116 Largest 2 | 2 2 2 Hottest 160 | 40 70 160 Shots Fired 287 | 24 79 184 Gun 177 | 24 58 95 Cannon 95 | . 14 81 Launcher 15 | . 7 8 Special . | . . . Kinetic 142 | 24 72 46 Thermal 135 | . . 135 Explosive 10 | . 7 3 Electromagnetic . | . . . Robot Hit Streak 33 | 7 10 33 Robot Miss Streak 4 | 2 4 2 Penetration Max . | . . . Secondary Targets 2 | . . 2 Max Gunslinging Chain 1 | . . 1 Shots Hit Robots 174 | 15 41 118 Core Hits 72 | 5 25 42 Critical Kills 3 | . . 3 Critical Parts Destroyed . | . . . Critical Strikes 4 | . . 4 Meltdown 1 | . . 1 Destroy 3 | . . 3 Melee Attacks . | . . . Impact . | . . . Slashing . | . . . Piercing . | . . . Sneak Attacks . | . . . Combat Hostiles . | . . . Follow-up Attacks . | . . . Damage Inflicted 3968 | 125 735 3108 Guns 1964 | 125 305 1534 Cannons 1168 | . 87 1081 Explosions 829 | . 336 493 Melee . | . . . Ramming 7 | . 7 . Kinetic 1643 | 125 392 1126 Thermal 1935 | . . 1935 Explosive 383 | . 336 47 Electromagnetic . | . . . Impact . | . . . Slashing . | . . . Piercing . | . . . Highest Corruption . | . . . Average Corruption . | . . . Corruption Purged . | . . . Corruption Blocked . | . . . Overload Shots . | . . . Overflow Damage 49 | . 8 41 Projectiles 39 | . . 39 Explosions 10 | . 8 2 Melee . | . . . Knockbacks 1 | . . 1 Impact . | . . . Kinetic 1 | . . 1 Secondary . | . . . Self-Inflicted Damage 26 | . 20 6 Shots 3 | . 1 2 Rammed . | . . . Targets Rammed 1 | . 1 . Kicked . | . . . Crushed 1 | . 1 . Highest Temperature 234 | . 27 234 Average Temperature 56 | . 9 67 Received Heat Transfer 288 | . 42 246 Siege Activations . | . . . Robots Corrupted . | . . . Combat Hostiles . | . . . Parts Fried . | . . . Impact Corruptions . | . . . Robots Melted 1 | . . 1 Combat Hostiles 1 | . . 1 Parts Melted 5 | . . 5 Heat Transferred 2506 | . . 2506 Parts Sabotaged . | . . . Parts Stolen . | . . . Parts Stripped . | . . . Power Chain Reactions . | . . . Alert | -11 -10 -10 ------- Run | Yrd Mat Sub Peak Influence 321 | 10 321 . Initial 6 | . 6 . Average 125 | 4 146 . Maximum Alert Level 1 | . 1 . Low Security (%) 75 | 100 71 . Level 1 24 | . 28 . Level 2 . | . . . Level 3 . | . . . Level 4 . | . . . Level 5 . | . . . High Security . | . . . Max Security . | . . . Squads Dispatched 2 | . 2 . Investigation 1 | . 1 . Extermination . | . . . Reinforcement 1 | . 1 . Assault . | . . . Garrison . | . . . Intercept . | . . . Searches Triggered . | . . . Construction Impeded . | . . . Haulers Reinforced . | . . . Active Scanning Responses . | . . . Cargo Convoy Interrupts . | . . . Stealth | -11 -10 -10 --------- Run | Yrd Mat Sub Distress Signals 1 | . 1 . Communications Jammed . | . . . Distress Signals . | . . . Times Spotted 56 | . 18 38 Peak Tracking Total 6 | . 4 6 Tactical Retreats 4 | . . 4 Traps | -11 -10 -10 ------- Run | Yrd Mat Sub Traps Triggered 3 | . 2 1 Indirectly . | . . . Trap Hack Attempts . | . . . Triggered . | . . . Disarmed . | . . . Reprogrammed . | . . . Reused . | . . . Traps Extracted . | . . . Installed . | . . . Triggered . | . . . Machines | -11 -10 -10 ---------- Run | Yrd Mat Sub Machines Disabled 7 | . 3 4 Max in Single Turn 3 | . 2 3 Machines Repaired . | . . . Machines Dismantled . | . . . Machines Sabotaged . | . . . Overloaded Fab Kills . | . . . Hacking | -11 -10 -10 --------- Run | Yrd Mat Sub Machines Accessed 5 | . 4 1 Terminals 3 | . 3 . Fabricators . | . . . Repair Stations . | . . . Recycling Units 1 | . 1 . Scanalyzers . | . . . Garrison Access . | . . . Total Hacks 24 | . 19 5 Successful 13 | . 8 5 Failed 11 | . 11 . Catastrophic . | . . . Database Lockouts . | . . . Manual 17 | . 17 . Terminals 16 | . 16 . Fabricators . | . . . Repair Stations . | . . . Recycling Units 3 | . 3 . Scanalyzers . | . . . Garrison Access . | . . . Terminal Hacks 8 | . 3 5 Record 5 | . . 5 Robot Analysis 2 | . 2 . Terminal Index 1 | . 1 . Fabricator Hacks . | . . . Repair Station Hacks . | . . . Recycling Unit Hacks . | . . . Scanalyzer . | . . . Garrison Access Hacks . | . . . Unauthorized Hacks 5 | . 5 . Terminals 4 | . 4 . Botnet 2 | . 2 . Skim 2 | . 2 . Fabricators . | . . . Repair Stations . | . . . Recycling Units 1 | . 1 . Tunnel 1 | . 1 . Scanalyzers . | . . . Garrison Access . | . . . Data Cores Recovered . | . . . Used . | . . . Hacking Detections 4 | . 4 . Full Trace Events . | . . . Feedback Events . | . . . Feedback Blocked . | . . . Robot Schematics Acquired . | . . . Robots Built . | . . . Authchips . | . . . Time . | . . . Total Robot Build Rating . | . . . Part Schematics Acquired . | . . . Parts Built . | . . . Authchips . | . . . Time . | . . . Total Part Build Rating . | . . . Parts Repaired . | . . . Time . | . . . Parts Recycled . | . . . Recycled Matter . | . . . Retrieved Matter . | . . . Retrieved Components . | . . . Parts Scanalyzed . | . . . Part Schematics Acquired . | . . . Parts Damaged . | . . . Bothacking | -11 -10 -10 ------------ Run | Yrd Mat Sub Used RIF Installer . | . . . Robots Hacked . | . . . Non-combat . | . . . Combat . | . . . Robot Hacks Applied . | . . . Relay Couplers Released . | . . . Fabnet Peak Effective % . | . . . Robots Rewired . | . . . Allies Hacked . | . . . Hacks Repelled . | . . . Allies | -11 -10 -10 -------- Run | Yrd Mat Sub Total Allies . | . . . Largest Group . | . . . Highest-Rated Group . | . . . Highest-Rated Ally . | . . . Total Orders . | . . . Ally Attacks . | . . . Total Damage . | . . . Kills . | . . . Allies Corrupted . | . . . Allies Melted . | . . . Intel | -11 -10 -10 ------- Run | Yrd Mat Sub Robot Analysis Total 2 | . 2 . Derelict Logs Recovered 1 | . . 1 Drone Launches . | . . . Drone Recoveries . | . . . Exploration | -11 -10 -10 ------------- Run | Yrd Mat Sub Turns Passed 4973 | 189 1118 3666 Spaces Moved 2488 | 95 407 1986 Core 6 | 6 . . Treads 2482 | 89 407 1986 Legs . | . . . Wheels . | . . . Hover . | . . . Flight . | . . . Fastest Speed 50 | 50 160 160 Average Speed 159 | 153 160 160 Slowest Speed 160 | 160 160 160 Overloaded Moves . | . . . Propulsion Burnouts . | . . . Robots Hopped . | . . . Cave-ins Triggered . | . . . Exploration Rate (%) 56 | 6 71 93 Regions Visited 2 Branch Regions 1 Pre-discovered Areas 3 | . 1 2 Known Exits Taken . | . . . Unknown Exits Taken 2 | 1 1 . Scrap Searched 17 | . . 17 Spaces Dug 23 | . . 23 Terrain Destroyed 154 | . 48 106 Melee . | . . . Projectile 14 | . . 14 AOE 140 | . 48 92 Terrain Rammed . | . . . Walls Destroyed . | . . . Machines Disabled . | . . . Actions | -11 -10 -10 --------- Run | Yrd Mat Sub Total 3211 | 116 804 2291 Wait 412 | . 328 84 Move 2486 | 94 406 1986 Hop . | . . . Pick Up 23 | 3 12 8 Fast Attach 24 | 7 2 15 Attach . | . . . Detach . | . . . Swap 28 | . 7 21 Drop 42 | . 5 37 Fire 171 | 12 43 116 Melee . | . . . Ram . | . . . Kick . | . . . Crush 1 | . 1 . Escape Stasis . | . . . Rewire . | . . . Trap . | . . . Miscellaneous 24 | . . 24 Route ------- -11/Scrapyard -10/Materials (discovered 4 exits: [*Mat x2] / [*Min] / *Sub) -10/Subcaves (discovered 3 exits: [*Mat x2] / *Rec) History --------- Turn | Location | Event 2 | -11/Scrapyard | Met Revision 17 50 | -11/Scrapyard | Discovered new exit (range 15) 190 | -11/Scrapyard | Entered Materials 304 | -10/Materials | Build established: Mutant 616 | -10/Materials | Discovered new exit (range 4) 741 | -10/Materials | Discovered new exit (range 15) 939 | -10/Materials | Discovered new exit (range 16) 1291 | -10/Materials | Discovered new exit (range 10) 1308 | -10/Materials | Entered Subcaves 1328 | -10/Subcaves | Learned location of Zion (-6) 1339 | -10/Subcaves | Met a Zionite searching for "candidates" 1388 | -10/Subcaves | Discovered new exit (range 12) 1392 | -10/Subcaves | Shifting Twisted Machinery released Sub. Laser 1400 | -10/Subcaves | Shifting Twisted Machinery released Scrap Shield 1479 | -10/Subcaves | Visited Clippyterm 1484 | -10/Subcaves | Identified exit to Recycling 1484 | -10/Subcaves | Learned Factory emergency access door positions 1855 | -10/Subcaves | Build established: Subdweller-Mutant 2272 | -10/Subcaves | Disturbed a concealed Subdweller 2510 | -10/Subcaves | Core integrity fell below 50% 2938 | -10/Subcaves | A swath of the cavern ceiling suddenly collapsed 3074 | -10/Subcaves | Discovered new exit (range 10) 3174 | -10/Subcaves | Shifting Twisted Machinery released Sub. Beam Cannon 3337 | -10/Subcaves | Shifting Twisted Machinery released Spk. Treads 3706 | -10/Subcaves | A swath of the cavern ceiling suddenly collapsed 4820 | -10/Subcaves | A Subdweller sparked back to life 4820 | -10/Subcaves | A Subdweller sparked back to life 4820 | -10/Subcaves | A Subdweller sparked back to life 4822 | -10/Subcaves | Core integrity fell below 20% 4848 | -10/Subcaves | Found Prototype Device 4949 | -10/Subcaves | Shifting Twisted Machinery released Shrapnel Trap 4974 | -10/Subcaves | Destroyed by KI-PLY(R) with Subdweller Shrapnel Launcher Last Messages --------------- 04820_ 11-T8B(R) creaks and sparks as it begins to move. 04820_ O0-8OB(R) destroyed. 04824_ 84-R7P(R) destroyed. 04830_ 11-T8B(R) destroyed. 04847_ Dropped Mak. Hacking Suite. 04848_ Acquired Prototype Device. 04850_ Acquired Mak. Hacking Suite. 04852_ Acquired 23 matter. 04857_ Discarded Mak. Hacking Suite. 04857_ Acquired Scrap Shield. 04860_ Scrap Shield Fragment affixed to Scrap Shield (+49). 04863_ Scrap Shield Fragment affixed to Scrap Shield (+6). 04864_ Acquired 37 matter. Shrapnel Trap falls loose from the Twisted Machinery. 04956_ Sub. Beam Cannon shoots sparks and powers down. Map ----- +----------------------------------------------------+ | ???# ### ##" ##??????????????? | | ??## ### ### ##???????????????? | | ??# ### ##?### ## #????????????????? | | ### ## #???## ### # ##???????????????? | | #### #???# % #### #???????????????? | | #?## ##???## [##??## # #??????????????? | | #?# ##???# #### #### #??????????????? | | #### #???# !& ##?####??????????????? | | ## #??# # &%# ##??????????????????? | | #??# #"# ##?????????????????? | | ## ### ##"" #?????????????????? | | ### #"" ####??????????????? | | ### ####!* #??????????????? | | ##?##&% ! #??????????????? | | ####?##" [ !%" ## #??????????????? | | # ##????# " ! ## #??????????????? | | ## ###?????##" = ## """##??????????????? | | ?## #????#####" # ####???????????????? | | ??## ##??## ###"& "### "##?????????????????? | | ???# #??# ############ " ##????????????????? | | #### #### #????#"#"""" """##???????????????? | | ## ###???"""""" "" " #???????????????? | | # ####?# ??""""# """"##???????????????? | | ## ##????# ???### [" ""#????????????????? | | ?# ###??### #"##### " ##????????????????? | | ## ##????? " #" @"" ##?????????????????? | | # #####?##?????#" " ##??????????????????? | | ##?# ## #?????## ""##??????????????????? | | #### #??????##" R """#??????????????????? | | ## #???????## "###""#?????????????????? | | # #????????# R#??""#?????????????????? | | # ##????????# "#??????????????????????? | | # # ##???????? ""#?????????????????????? | | ###""### #???????? O"""#????????????????????? | | ######?###???????##"""""????????????????????? | | #???????????????? &"# ????????????????????? | | #???????????????? ##??????????????????????? | | ######???????????????? #???????????????????????? | | ??????????????????????"##???????????????????????? | | ??????????????????????#?????????????????????????? | | ????????????????????????????????????????????????? | | ????????????????????????????????????????????????? | | ????????????????????????????????????????????????? | | ????????????????????????????????????????????????? | | ????????????????????????????????????????????????? | | ????????????????????????????????????????????????? | | ????????????????????????????????????????????????? | | ????????????????????????????????????????????????? | | ????????????????????????????????????????????????? | | ????????????????????????????????????????????????? | +----------------------------------------------------+ Best States ------------- Heat Dissipation 25 Coolant Potential 50 Energy Generation 15 Energy Capacity 250 Matter Stores 300 Matter Capacity 300 Sight Range 21 Terrain Scan Density 10 Armor Coverage 800 Evasion (%) 40 Recoil Reduction 2 Item Schematics ----------------- None Robot Schematics ------------------ None Fabricated ------------ Nothing Alien Tech Used ----------------- None Achievements -------------- None Challenges ------------ None Game ------ Seed LightningIntegratedAutogun Manual? 0 Play Time 00:26:45 Cumulative 340.1 hours Start 2024.09.26 @ 21:01:50 End 2024.09.26 @ 21:40:49 Sessions 1 Manual Loads 0 Difficulty Rogue Special Mode None Game No. 246 Rogue 241 Adventurer 5 Explorer 0 Win Type - Total 7 Types 4/0/3/0/0/0/0/0/0 Lore% 67 Gallery% 85 Achievement% 70 Wizard Run 0 Options --------- Layout 2 ASCII 0 Keyboard 0 Movement Mouse Keybinds 0 Fullscreen 2 Font 24/Smallcaps Map View 50x44 Zoom Use 0% Tactical HUD 1 Map Filters NONE Filters NONE Steam 1 RUN: add36665-2a6d-4ae8-ba4b-b9ec9e2de53d